bitfinex/quotes_ETHUSD_20240828
["timestamp","ask_amount","ask_price","bid_price","bid_amount"]
[1724864417782,5.009175,2521.0,2520.5,3.96737]
[1724864418147,3.96607,2521.4,2520.8,3.96688]
[1724864418346,3.96638,2521.2,2520.7,3.96711]
[1724864418552,0.396607,2521.3,2520.8,3.96698]
[1724864418751,7.93221,2521.4,2520.6,3.96716]
[1724864418752,3.96645,2521.2,2520.6,3.96716]
[1724864419353,3.96645,2521.2,2520.7,3.96707]
[1724864419554,3.96621,2521.3,2520.7,3.96707]
[1724864420276,4.611935,2521.4,2520.4,3.96751]
[1724864420277,3.96655,2521.1,2520.4,3.96751]
[1724864420450,3.96655,2521.1,2520.2,6.32831]
[1724864420451,3.96705,2520.8,2520.2,6.32831]
[1724864420787,0.396655,2521.0,2518.8,2.2855]
[1724864420788,3.96819,2520.1,2519.4,6.42088]
[1724864420997,3.96819,2520.1,2519.6,3.96886]
[1724864421299,3.96813,2520.1,2519.4,10.38996]
[1724864421479,3.96825,2520.0,2519.5,3.96901]
[1724864421653,3.96841,2519.9,2519.4,3.96908]
[1724864421846,3.96813,2520.1,2519.4,3.96908]
[1724864421847,8.63164097,2520.1,2519.4,3.96908]
[1724864422047,3.96835,2520.0,2519.4,3.96908]
[1724864422278,3.96867,2519.8,2519.2,4.82092971]
[1724864422505,3.96867,2519.8,2518.8,4.36793]
[1724864422506,3.96889,2519.6,2519.0,3.96972]
[1724864423394,3.96889,2519.6,2518.8,6.42185]
[1724864423395,3.96914,2519.5,2518.9,3.96988]
[1724864423610,3.96889,2519.6,2519.0,3.9698]
[1724864423611,4.41574722,2519.6,2519.0,3.9698]
[1724864423766,3.96915,2519.5,2519.0,3.9698]
[1724864423968,3.96952,2519.2,2518.6,3.97031]
[1724864424185,3.9692,2519.4,2518.8,3.97014]
[1724864424357,3.96945,2519.3,2518.8,3.97014]
[1724864424560,0.24826,2519.6,2518.9,3.96987]
[1724864424754,3.96921,2519.4,2518.8,4.8284061]
[1724864424991,3.96921,2519.4,2518.8,3.97003]
[1724864425204,2.4826,2520.0,2518.9,0.07939561]
[1724864425369,3.96874,2519.7,2518.9,3.96987]
[1724864425702,3.96904,2519.5,2519.0,3.96974]
[1724864425856,0.396874,2519.6,2519.0,3.96969]
[1724864426057,0.396874,2519.6,2518.9,3.96987]
[1724864426401,6.45171,2519.5,2518.9,3.96987]
[1724864426603,6.45171,2519.5,2519.0,3.96979]
[1724864427099,10.42083,2519.5,2518.9,3.96987]
[1724864427303,7.5334524,2519.5,2518.9,3.96987]
[1724864427673,3.96816,2520.1,2518.6,0.07939276]
[1724864427674,3.96797,2520.2,2518.7,2.3385]
[1724864427855,3.96797,2520.2,2519.6,3.96877]
[1724864427856,3.96809,2520.1,2519.6,3.96877]
[1724864428059,2.2703,2520.2,2519.1,3.96956]
[1724864428304,2.2703,2520.2,2519.2,3.96941]
[1724864428470,3.96867,2519.8,2519.2,3.96941]
[1724864428672,3.96867,2519.8,2518.8,4.600951]
[1724864428673,3.969,2519.6,2519.0,3.96972]
[1724864428868,0.3969,2519.5,2519.0,7.93947]
[1724864429071,0.3969,2519.5,2519.0,3.96972]
[1724864429389,3.96896,2519.6,2519.0,7.93946]
[1724864429702,7.93793,2519.6,2519.0,3.96972]
[1724864430006,4.592726,2519.6,2519.1,3.96964]
[1724864430363,4.592726,2519.6,2519.0,3.96971]
[1724864430591,4.592726,2519.6,2519.1,3.96958]
[1724864431201,0.6861426,2519.5,2519.0,3.96971]
[1724864432275,4.6552726,2519.5,2519.0,3.96971]
[1724864432492,3.96929,2519.4,2518.8,7.94009]
[1724864432705,0.86245626,2519.3,2519.0,3.96981]
[1724864433010,4.6552726,2519.5,2519.2,3.96951]
[1724864433011,0.6861426,2519.5,2519.2,3.96951]
[1724864433227,2.2687,2519.7,2519.3,3.96926]
[1724864433393,3.289305,2519.7,2519.3,3.96926]
[1724864433916,2.48193,2520.1,2519.6,3.96876]
[1724864434222,2.48193,2520.1,2519.2,3.96949]
[1724864434223,3.96844,2519.9,2519.4,3.96908]
[1724864434580,3.96858,2519.8,2519.3,3.96934]
[1724864434811,0.793702,2519.7,2519.2,3.9694]
[1724864434989,0.793702,2519.7,2519.3,3.96931]
[1724864435185,3.96898,2519.6,2519.0,3.96971]
[1724864435529,3.9692,2519.4,2519.0,3.96971]
[1724864435819,6.39868,2519.6,2519.0,3.96971]
[1724864436136,6.39868,2519.6,2518.6,2.487]
[1724864436137,6.39866,2519.6,2519.1,3.96955]
[1724864436315,11.40436,2519.6,2519.1,3.96955]
[1724864436522,7.43539,2519.6,2519.1,3.96955]
[1724864436817,7.43539,2519.6,2519.0,3.96981]
[1724864437028,0.743539,2519.5,2518.9,3.96989]
[1724864437178,0.743539,2519.5,2519.0,3.9697]
[1724864437381,2.4297,2519.6,2519.0,3.9698]
[1724864437696,2.4297,2519.6,2519.2,3.96948]
[1724864438315,2.4395,2519.9,2518.7,0.645756]
[1724864438483,3.96811,2520.1,2519.5,3.96895]
[1724864438688,4.56222487,2520.1,2519.5,7.9379]
[1724864439025,4.95917587,2520.0,2519.5,3.96895]
[1724864439188,3.96842,2519.9,2519.4,3.96919]
[1724864439394,3.96842,2519.9,2519.3,3.96926]
[1724864439635,2.2654,2520.3,2519.9,3.96838]
[1724864439811,3.96755,2520.5,2519.9,3.96838]
[1724864440035,3.96762,2520.4,2519.8,3.96855]
[1724864440235,6.3979,2520.6,2519.9,3.96841]
[1724864440530,3.96757,2520.5,2519.9,3.96831]
[1724864440702,2.3674,2521.3,2520.7,3.96714]
[1724864440909,2.3674,2521.3,2520.9,3.9667]
[1724864441242,3.96575,2521.6,2520.9,3.9667]
[1724864441537,6.33304,2521.7,2521.1,3.96646]
[1724864441754,6.33304,2521.7,2521.1,3.96639]
[1724864441755,3.000704,2521.7,2521.1,3.96639]
[1724864441938,3.000704,2521.7,2521.0,3.96655]
[1724864441939,6.966404,2521.7,2521.0,3.96655]
[1724864442104,3.000704,2521.7,2521.0,4.363205]
[1724864442310,4.37988639,2522.4,2521.0,4.363205]
[1724864442311,2.3422,2522.0,2521.4,3.96599]
[1724864442506,0.41539639,2522.4,2521.9,3.96524]
[1724864442507,2.3422,2522.4,2521.9,3.96524]
[1724864442725,2.3422,2522.4,2522.0,3.96506]
[1724864443039,2.3422,2522.4,2521.0,6.34431]
[1724864443040,3.96512,2522.0,2521.0,6.34431]
[1724864443247,0.396512,2521.9,2521.5,3.96586]
[1724864443541,2.3422,2522.4,2521.5,3.96586]
[1724864443542,2.3422,2522.4,2521.9,3.96526]
[1724864443748,2.3422,2522.4,2521.5,3.96583]
[1724864443946,2.3422,2522.4,2521.6,4.44150739]
[1724864444250,2.3422,2522.4,2521.6,4.362193]
[1724864444414,3.96435,2522.5,2521.8,3.9653]
[1724864444603,3.96435,2522.5,2521.9,3.96525]
[1724864444804,0.46092541,2523.0,2522.2,3.96467]
[1724864444805,3.96354,2523.0,2522.2,3.96467]
[1724864445211,3.96422,2522.6,2521.8,3.96535]
[1724864445417,3.9645,2522.4,2521.8,3.96535]
[1724864445656,0.792897,2522.3,2521.7,3.96557]
[1724864445955,2.4665,2522.8,2521.8,2.52380558]
[1724864446133,3.96436,2522.5,2521.8,3.96538]
[1724864446303,3.96436,2522.5,2521.9,3.96524]
[1724864446647,0.396436,2522.4,2522.0,3.96503]
[1724864446939,4.360084,2522.9,2522.2,3.96464]
[1724864446940,0.396354,2522.9,2522.2,3.96464]
[1724864447451,7.360044,2522.9,2522.2,3.96464]
[1724864447631,0.7360044,2522.8,2522.2,3.96464]
[1724864447829,3.396354,2522.9,2522.4,3.96442]
[1724864448008,0.396354,2522.9,2522.4,3.96442]
[1724864448202,4.360164,2522.9,2522.2,3.96464]
[1724864448404,0.7360164,2522.8,2522.2,3.96464]
[1724864448666,0.396354,2522.9,2522.4,3.96445]
[1724864449317,0.396354,2522.9,2522.5,3.96431]
[1724864449522,3.96301,2523.4,2522.6,3.96414]
[1724864449745,3.96301,2523.4,2522.8,3.9637]
[1724864450043,0.47306754,2523.7,2522.8,6.30449]
[1724864450244,0.47306754,2523.7,2523.0,3.96343]
[1724864450409,0.47306754,2523.7,2523.0,7.92685]
[1724864450606,3.96234,2523.8,2523.0,3.96342]
[1724864450805,3.96234,2523.8,2523.0,7.92684]
[1724864451051,0.396234,2523.7,2523.1,3.96335]
[1724864451252,0.396234,2523.7,2523.2,3.9632]
[1724864451457,4.43508754,2524.0,2523.2,3.96312]
[1724864451608,3.9623,2523.8,2523.2,3.96312]
[1724864451948,3.96202,2524.0,2523.2,3.96312]
[1724864452108,0.396202,2523.9,2523.2,3.9631]
[1724864452310,3.96227,2523.9,2523.2,3.9631]
[1724864453419,3.96238,2523.8,2523.1,3.96335]
[1724864453726,3.96238,2523.8,2523.0,3.96345]
[1724864453727,7.92542,2523.6,2523.0,3.96345]
[1724864454028,7.92542,2523.6,2522.8,6.9745704]
[1724864454029,3.96306,2523.4,2522.8,3.96384]
[1724864454655,4.755202,2523.6,2522.9,3.96367]
[1724864454858,3.96266,2523.6,2522.9,3.96367]
[1724864455086,7.92535,2523.6,2522.9,3.96367]
[1724864455255,3.963,2523.4,2522.8,3.96375]
[1724864455748,3.96298,2523.4,2522.6,3.9641]
[1724864455935,2.3489,2523.5,2522.4,3.96437]
[1724864455936,3.96357,2523.0,2522.4,3.96437]
[1724864456132,2.2502,2523.0,2521.7,2.4065]
[1724864456332,3.9649,2522.2,2521.4,6.37242]
[1724864456565,3.9649,2522.2,2521.5,0.637242]
[1724864456728,3.9652,2522.0,2521.4,3.96592]
[1724864456939,3.9652,2522.0,2521.2,3.96629]
[1724864456940,3.96568,2521.7,2520.9,3.9668]
[1724864457243,3.96568,2521.7,2520.9,0.396673]
[1724864457443,3.96568,2521.7,2521.0,3.96657]
[1724864457769,3.96544,2521.8,2521.1,3.96649]
[1724864457983,6.38289,2522.4,2521.2,6.44722]
[1724864457984,3.96466,2522.3,2521.2,6.44722]
[1724864458138,7.602949,2522.3,2521.5,3.96582]
[1724864458482,3.96513,2522.0,2521.4,3.9659]
[1724864458632,1.0021349,2522.2,2521.5,3.96589]
[1724864458832,4.602989,2522.3,2521.5,3.96589]
[1724864459278,4.602989,2522.3,2521.5,3.96578]
[1724864459433,3.96482,2522.2,2521.5,3.96578]
[1724864459638,1.0986209,2522.2,2521.5,7.93155]
[1724864459840,1.0986209,2522.2,2521.7,3.96557]
[1724864460175,3.96433,2522.5,2521.9,3.96513]
[1724864460329,3.96433,2522.5,2521.7,3.96547]
[1724864460536,0.396433,2522.4,2521.7,3.96547]
[1724864460783,4.361003,2522.4,2521.7,3.96547]
[1724864460998,4.360127,2522.9,2521.9,2.3468]
[1724864461138,3.96377,2522.9,2522.1,3.96484]
[1724864461446,0.47306754,2523.5,2521.9,2.3468]
[1724864461447,3.96318,2523.3,2521.9,2.3468]
[1724864461634,3.96318,2523.3,2522.5,3.96421]
[1724864461635,3.96324,2523.2,2522.5,3.96421]
[1724864461838,3.96343,2523.1,2522.3,3.96449]
[1724864462350,3.96311,2523.3,2522.1,3.96492]
[1724864462562,3.96333,2523.2,2522.5,3.96417]
[1724864462738,0.47306754,2523.2,2522.5,3.96417]
[1724864462938,3.96319,2523.3,2522.5,3.96417]
[1724864463140,3.96319,2523.3,2522.6,3.96405]
[1724864463438,3.96323,2523.2,2522.5,4.360587]
[1724864463641,3.96323,2523.2,2522.5,3.96417]
[1724864463872,3.96319,2523.3,2522.6,3.96415]
[1724864464087,6.42881,2523.5,2522.8,3.96382]
[1724864464388,6.42881,2523.5,2522.7,7.92778]
[1724864464389,3.96292,2523.4,2522.7,7.92778]
[1724864464587,3.963,2523.4,2522.8,0.792778]
[1724864464739,3.96309,2523.3,2522.6,3.96404]
[1724864464942,3.96323,2523.2,2522.4,3.96442]
[1724864465144,3.96395,2522.8,2521.8,6.40034]
[1724864465342,3.96395,2522.8,2522.0,3.965]
[1724864465343,3.96417,2522.6,2522.0,3.965]
[1724864465539,3.96402,2522.7,2522.0,3.965]
[1724864465779,3.96402,2522.7,2521.8,6.40035]
[1724864465780,3.96402,2522.7,2521.9,3.96524]
[1724864465948,3.96432,2522.5,2521.9,3.96524]
[1724864466156,3.96511,2522.0,2521.4,6.27157]
[1724864466459,3.96545,2521.8,2521.1,3.96639]
[1724864466661,3.96511,2522.0,2521.3,3.9662]
[1724864466975,3.96511,2522.0,2521.1,3.96639]
[1724864466976,3.96542,2521.8,2521.1,3.96639]
[1724864467157,4.758108,2522.0,2521.1,4.593589]
[1724864467484,3.96528,2521.9,2521.3,3.96606]
[1724864467693,3.96528,2521.9,2521.1,4.593589]
[1724864467842,3.96485,2522.2,2521.3,3.96606]
[1724864468044,3.96485,2522.2,2521.2,0.4593589]
[1724864468341,3.96454,2522.4,2521.7,3.96556]
[1724864468550,3.96454,2522.4,2521.6,3.96562]
[1724864468748,3.96468,2522.3,2521.6,3.96562]
[1724864468993,3.96482,2522.2,2521.6,3.96562]
[1724864469200,3.96523,2522.0,2521.3,3.96608]
[1724864469404,3.96523,2522.0,2521.3,0.396608]
[1724864469683,3.96523,2522.0,2521.3,3.96605]
[1724864470044,3.96527,2521.9,2521.3,3.96605]
[1724864470250,3.96543,2521.8,2521.2,3.96636]
[1724864470476,4.361753,2522.0,2521.3,3.96618]
[1724864470743,2.4721,2522.4,2521.1,0.627204]
[1724864470948,3.96574,2521.6,2520.5,2.4735]
[1724864471186,6.43757,2521.8,2520.9,3.96671]
[1724864471391,2.4721,2521.8,2521.2,3.96622]
[1724864471590,3.96544,2521.8,2521.1,3.96642]
[1724864471792,3.96544,2521.8,2521.1,7.93282]
[1724864471945,8.724059,2521.8,2521.1,3.9664]
[1724864472265,7.931,2521.8,2521.1,3.9664]
[1724864472465,3.0,2522.1,2520.9,3.96683]
[1724864472466,3.96588,2521.6,2520.9,3.96683]
[1724864472652,3.96584,2521.6,2520.7,4.26200664]
[1724864472995,3.96584,2521.6,2520.9,3.96673]
[1724864473177,3.96599,2521.5,2520.9,3.96673]
[1724864473494,3.96606,2521.4,2520.7,4.26196664]
[1724864473704,3.9655,2521.8,2520.9,3.96674]
[1724864473917,3.96573,2521.6,2520.9,7.93347]
[1724864474121,3.96573,2521.6,2520.9,7.93344]
[1724864474424,3.96573,2521.6,2520.8,0.42620366]
[1724864474425,0.354721,2521.9,2520.8,0.42620366]
[1724864474724,7.93255,2521.3,2520.7,3.96703]
[1724864474900,3.9664,2521.2,2520.6,3.96727]
[1724864475070,3.96623,2521.3,2520.6,5.008087]
[1724864475275,3.96646,2521.2,2520.6,5.008087]
[1724864475499,3.96623,2521.3,2520.7,3.96704]
[1724864475709,3.96623,2521.3,2520.7,5.1119167]
[1724864475883,6.28337,2521.8,2520.3,3.96765]
[1724864476100,7.9336,2521.0,2520.3,3.96765]
[1724864476287,0.79336,2521.0,2520.1,3.96801]
[1724864476487,3.96652,2521.1,2520.1,3.96801]
[1724864476808,3.96711,2520.8,2520.1,3.96799]
[1724864476988,3.96711,2520.8,2520.1,4.607049]
[1724864477535,6.31791,2521.2,2519.7,3.96864]
[1724864477536,3.96778,2520.3,2519.7,3.96864]
[1724864477740,0.396778,2520.3,2519.5,3.96893]
[1724864477951,3.96834,2520.0,2519.4,3.96917]
[1724864478101,2.3515,2520.6,2519.1,3.96963]
[1724864478102,3.9688,2519.7,2519.1,3.96963]
[1724864478298,3.9688,2519.7,2519.1,3.96958]
[1724864478543,3.96844,2519.9,2519.1,3.96958]
[1724864478712,3.96799,2520.2,2519.1,4.61673676]
[1724864478908,3.96882,2519.7,2519.1,4.61673676]
[1724864479098,7.93765,2519.7,2519.1,4.61673676]
[1724864479298,3.96882,2519.7,2519.1,4.61673676]
[1724864479504,3.96849,2519.9,2519.2,0.46167368]
[1724864479733,3.96835,2520.0,2519.3,3.96926]
[1724864479952,3.96852,2519.9,2519.2,3.9695]
[1724864480448,7.93757,2519.7,2519.1,3.96958]
[1724864480654,3.96847,2519.9,2519.1,3.96958]
[1724864480806,3.96858,2519.8,2519.3,3.96934]
[1724864481118,3.96889,2519.6,2519.1,3.96958]
[1724864481509,3.96889,2519.6,2519.0,3.96981]
[1724864481833,3.96889,2519.6,2519.0,3.96982]
[1724864482809,7.9379,2519.6,2519.0,3.96982]
[1724864483010,4.8420505,2519.6,2518.9,3.96988]
[1724864483244,4.8420505,2519.6,2519.0,3.96974]
[1724864483704,3.96889,2519.6,2519.0,3.96974]
[1724864483906,3.96912,2519.5,2518.9,3.96988]
[1724864484146,3.96924,2519.4,2518.9,3.96988]
[1724864484512,7.93852,2519.4,2518.9,3.96988]
[1724864484715,7.93798,2519.6,2518.9,3.96988]
[1724864484904,0.631995,2519.8,2518.5,0.07939935]
[1724864485106,3.96889,2519.6,2519.1,3.96966]
[1724864485352,3.96889,2519.6,2519.1,7.93932]
[1724864485549,6.31995,2519.9,2519.4,3.96917]
[1724864485846,6.31995,2519.9,2519.2,3.96949]
[1724864485847,3.96857,2519.8,2519.3,3.96935]
[1724864486011,4.997399,2519.8,2519.3,3.96935]
[1724864486345,3.96857,2519.8,2519.3,3.96935]
[1724864486847,3.9689,2519.6,2519.1,7.93922]
[1724864487059,4.762647,2519.6,2519.1,3.96958]
[1724864487411,8.731627,2519.6,2519.1,3.96958]
[1724864487618,4.762647,2519.6,2519.1,3.96958]
[1724864487822,8.731617,2519.6,2519.1,3.96958]
[1724864488007,4.762647,2519.6,2519.1,3.96958]
[1724864488409,3.96904,2519.5,2519.0,3.96982]
[1724864488960,3.9692,2519.4,2518.9,7.93978]
[1724864489107,3.9692,2519.4,2518.9,3.96988]
[1724864490515,3.9692,2519.4,2518.9,7.93973]
[1724864490730,3.96884,2519.7,2519.2,3.96942]
[1724864490942,3.96866,2519.8,2519.3,3.96925]
[1724864491126,3.96866,2519.8,2519.4,3.96918]
[1724864491321,7.93731,2519.8,2519.2,7.93879]
[1724864491528,5.310863,2519.8,2519.3,3.96933]
[1724864491752,3.96865,2519.8,2519.3,3.96933]
[1724864492659,3.96865,2519.8,2519.1,3.96966]
[1724864492660,7.93668,2520.0,2519.4,3.96905]
[1724864492845,3.96742,2520.6,2520.0,3.96815]
[1724864493043,6.43606,2520.9,2519.9,3.96833]
[1724864493229,6.43606,2520.9,2519.8,3.96856]
[1724864493230,3.96782,2520.3,2519.8,3.96856]
[1724864493610,3.9681,2520.1,2519.5,4.365815]
[1724864493958,3.9681,2520.1,2519.6,3.96875]
[1724864494160,3.96829,2520.0,2519.5,3.96902]
[1724864494315,4.761889,2520.0,2519.3,3.96924]
[1724864494517,3.96825,2520.0,2519.3,3.96924]
[1724864494716,3.96864,2519.8,2519.3,3.96924]
[1724864495061,3.96864,2519.8,2519.2,3.9695]
[1724864495062,3.9688,2519.7,2519.2,3.9695]
[1724864495262,3.96864,2519.8,2519.0,3.96979]
[1724864495263,3.96909,2519.5,2519.0,3.96979]
[1724864495462,3.96909,2519.5,2519.0,3.96973]
[1724864496016,3.96933,2519.4,2518.9,3.96988]
[1724864496231,3.96909,2519.5,2518.9,3.96985]
[1724864496644,3.96888,2519.6,2518.9,3.96985]
[1724864496828,3.96889,2519.6,2518.9,0.396985]
[1724864497034,3.96889,2519.6,2518.8,3.97009]
[1724864497243,2.3332,2519.4,2518.2,3.97107]
[1724864497445,2.3332,2519.4,2518.1,2.3215]
[1724864497446,3.97033,2518.7,2518.1,6.29269]
[1724864497769,3.97033,2518.7,2518.1,2.3215]
[1724864497933,3.97033,2518.7,2518.1,6.29271]
[1724864498143,3.97059,2518.6,2518.0,3.97131]
[1724864498339,3.97072,2518.5,2517.8,10.26472]
[1724864498553,3.97058,2518.6,2517.8,6.29307]
[1724864498739,3.97058,2518.6,2517.8,10.26466]
[1724864498939,3.97067,2518.5,2517.9,3.97146]
[1724864499252,3.97031,2518.7,2518.0,3.97132]
[1724864499425,0.41574398,2518.4,2518.1,4.368352]
[1724864499764,0.41574398,2518.4,2518.1,3.97122]
[1724864499926,0.41574398,2518.4,2518.0,3.97127]
[1724864500132,0.41574398,2518.4,2518.3,3.97093]
[1724864500354,0.41574398,2518.4,2518.2,3.97096]
[1724864501139,0.41574398,2518.4,2518.0,3.97128]
[1724864501380,4.82522438,2518.4,2517.4,2.3512]
[1724864501531,4.82522438,2518.4,2517.4,3.9722]
[1724864501532,1.42854999,2518.4,2517.4,3.9722]
[1724864501738,3.97125,2518.1,2517.4,3.9722]
[1724864501950,3.97142,2518.0,2517.4,3.9722]
[1724864502346,0.41574398,2518.4,2517.8,3.97158]
[1724864502551,0.41574398,2518.4,2517.8,4.368738]
[1724864502778,0.41574398,2518.4,2517.9,3.97142]
[1724864502977,0.41574398,2518.4,2517.8,4.368738]
[1724864502978,0.41574398,2518.4,2518.1,3.97123]
[1724864503179,0.41574398,2518.4,2518.0,3.97125]
[1724864503549,0.41574398,2518.4,2517.7,3.97175]
[1724864503750,0.41574398,2518.4,2517.8,3.97162]
[1724864503949,0.41574398,2518.4,2517.5,6.32333]
[1724864504275,3.9712,2518.2,2517.5,6.32333]
[1724864504476,3.9712,2518.2,2517.5,10.2954]
[1724864504686,3.9712,2518.2,2517.5,6.32327]
[1724864505176,3.9712,2518.2,2517.5,6.32325]
[1724864505490,0.41574398,2518.4,2518.3,3.97093]
[1724864505641,0.41574398,2518.4,2518.2,3.97105]
[1724864506141,0.41574398,2518.4,2517.2,6.97261]
[1724864506142,0.41574398,2518.4,2517.7,3.97172]
[1724864506550,0.41574398,2518.4,2517.5,2.3392]
[1724864506791,0.41574398,2518.4,2517.9,3.97142]
[1724864507298,0.41574398,2518.4,2518.2,3.97095]
[1724864507438,0.41574398,2518.4,2518.1,3.97111]
[1724864507636,0.41574398,2518.4,2518.3,7.94186]
[1724864507837,0.04038094,2518.4,2518.3,7.94186]
[1724864508042,3.97015,2518.8,2518.1,6.23304]
[1724864508296,3.97015,2518.8,2518.1,3.97114]
[1724864508587,3.97013,2518.9,2518.1,3.97114]
[1724864508588,3.97013,2518.9,2518.2,3.97101]
[1724864508817,0.41583756,2519.0,2518.9,3.96998]
[1724864508940,3.96898,2519.6,2518.9,3.96998]
[1724864509142,0.624948,2519.6,2518.9,6.31936891]
[1724864509341,6.24912,2519.8,2518.9,6.23997]
[1724864509342,0.41575798,2519.3,2518.9,6.23997]
[1724864509647,3.96914,2519.5,2518.9,3.96996]
[1724864510191,3.96914,2519.5,2518.7,7.94042]
[1724864510343,4.38451004,2519.7,2518.8,0.07939775]
[1724864510543,4.38451004,2519.7,2519.2,3.9694]
[1724864510544,0.41577004,2519.7,2519.2,3.9694]
[1724864510742,4.38458004,2519.7,2519.0,3.96972]
[1724864511046,5.05108804,2519.7,2519.0,3.96972]
[1724864511556,5.05108804,2519.7,2518.2,0.397114]
[1724864511557,1.08227804,2519.7,2518.3,2.2512]
[1724864511892,3.96936,2519.3,2518.6,3.97036]
[1724864512046,3.96921,2519.4,2518.6,3.97036]
[1724864512380,3.41577004,2519.7,2518.7,3.97021]
[1724864512551,3.96979,2519.1,2518.5,3.97048]
[1724864512948,3.96993,2519.0,2518.3,6.222]
[1724864513144,3.96993,2519.0,2518.4,3.97074]
[1724864513372,4.366769,2519.1,2518.1,3.97117]
[1724864513373,3.97002,2518.9,2518.1,3.97117]
[1724864513545,0.6738769,2519.0,2518.4,3.97071]
[1724864513753,3.96944,2519.3,2518.4,3.97072]
[1724864513951,3.96944,2519.3,2518.5,3.97061]
[1724864513952,3.96967,2519.1,2518.5,3.97061]
[1724864514184,3.96944,2519.3,2518.6,3.97044]
[1724864514394,6.34111,2519.5,2518.8,3.97011]
[1724864514764,4.38455004,2519.7,2518.8,3.97011]
[1724864514765,0.41577004,2519.7,2519.1,3.96952]
[1724864515119,4.38464004,2519.7,2518.9,3.96986]
[1724864515388,4.38464004,2519.7,2518.4,3.97075]
[1724864515389,0.41577004,2519.7,2519.4,3.96917]
[1724864515595,0.41577004,2519.7,2519.4,4.762944]
[1724864515749,0.41577004,2519.7,2519.5,3.96895]
[1724864515944,0.41577004,2519.7,2519.4,3.96909]
[1724864517059,4.38460004,2519.7,2519.0,2.3028]
[1724864517251,0.43846,2519.6,2519.0,6.27262]
[1724864517451,4.38460004,2519.7,2519.0,10.24234]
[1724864517693,3.969,2519.6,2519.0,6.27252]
[1724864517849,0.41577004,2519.7,2519.1,4.596792]
[1724864518050,0.41577004,2519.7,2519.1,4.67617498]
[1724864518355,0.41577004,2519.7,2519.1,4.596792]
[1724864518777,0.41577004,2519.7,2519.3,3.96922]
[1724864519005,0.41577004,2519.7,2519.6,3.96888]
[1724864519787,0.41577004,2519.7,2519.6,6.26198]
[1724864520029,0.41577004,2519.7,2519.4,3.96913]
[1724864520233,0.41577004,2519.7,2519.2,3.96943]
[1724864520586,0.41577004,2519.7,2519.6,3.96888]
[1724864521033,0.41577004,2519.7,2519.5,3.96892]
[1724864521361,4.38455004,2519.7,2519.1,3.96958]
[1724864521484,0.41577004,2519.7,2519.1,7.93912]
[1724864521685,0.41577004,2519.7,2518.7,7.9404]
[1724864521686,3.96929,2519.4,2518.7,7.9404]
[1724864521926,3.96929,2519.4,2518.7,3.97014]
[1724864522139,2.4313,2519.5,2518.5,3.97052]
[1724864522439,2.4313,2519.5,2518.4,3.97066]
[1724864522440,3.96994,2519.0,2518.4,3.97066]
[1724864522617,3.96994,2519.0,2518.4,7.94133]
[1724864522806,3.9696,2519.2,2518.2,2.3152]
[1724864522807,3.9696,2519.2,2518.6,7.9407]
[1724864523022,3.96983,2519.0,2518.4,3.97063]
[1724864523203,3.96983,2519.0,2518.4,7.9413]
[1724864523409,3.96968,2519.1,2518.5,3.9706]
[1724864523727,7.93975,2519.0,2518.4,3.97063]
[1724864523911,3.97008,2518.9,2518.2,2.3152]
[1724864524113,3.97008,2518.9,2518.3,3.97079]
[1724864524511,3.97063,2518.5,2518.0,3.97139]
[1724864524683,2.4845,2518.9,2517.8,6.25861]
[1724864524889,3.97088,2518.4,2517.6,7.94389]
[1724864525089,3.97088,2518.4,2517.6,3.97194]
[1724864525331,3.97088,2518.4,2517.6,3.97198]
[1724864525530,3.97088,2518.4,2517.4,2.3981]
[1724864525531,3.97113,2518.2,2517.4,6.37034]
[1724864525743,4.367968,2518.4,2517.4,2.3981]
[1724864525906,7.9418,2518.4,2517.7,3.97172]
[1724864526089,7.9418,2518.4,2517.4,2.3981]
[1724864526090,2.4139,2518.6,2517.5,3.97212]
[1724864526294,2.4139,2518.6,2517.3,3.97243]
[1724864526591,2.4139,2518.6,2517.1,2.2744]
[1724864526592,3.97052,2518.6,2517.9,3.97151]
[1724864526789,3.97052,2518.6,2518.0,4.368541]
[1724864526991,3.97058,2518.6,2518.0,0.07942175]
[1724864527236,4.38603262,2518.8,2518.1,3.97113]
[1724864527448,3.97073,2518.5,2517.9,3.97146]
[1724864527991,3.97059,2518.6,2518.0,3.97135]
[1724864528192,4.85011559,2518.6,2518.1,3.97122]
[1724864528391,4.38606262,2518.8,2518.1,3.97113]
[1724864528633,7.94105,2518.6,2517.9,3.9715]
[1724864528886,3.97072,2518.5,2517.9,3.9715]
[1724864529394,4.38606262,2518.8,2518.1,3.97115]
[1724864529593,3.97031,2518.7,2518.1,3.97115]
[1724864529839,7.94105,2518.6,2517.9,3.97143]
[1724864530041,0.83563726,2518.7,2518.1,3.97124]
[1724864530248,0.41586262,2518.8,2518.3,3.97081]
[1724864530393,0.41586262,2518.8,2518.2,2.90663726]
[1724864530394,0.41586262,2518.8,2518.6,3.97045]
[1724864530591,0.41586262,2518.8,2518.2,6.40113]
[1724864530592,0.41586262,2518.8,2518.7,8.02000253]
[1724864530793,3.9686,2519.8,2518.7,6.3875]
[1724864531037,3.9686,2519.8,2519.2,7.9388]
[1724864531239,10.20699,2520.0,2519.2,3.96938]
[1724864531408,0.41573666,2519.7,2519.4,3.96918]
[1724864531613,0.41573666,2519.7,2519.5,3.96889]
[1724864531793,0.41573666,2519.7,2519.4,3.96918]
[1724864531794,0.41573666,2519.7,2519.6,3.96888]
[1724864531993,0.41573666,2519.7,2519.4,3.96909]
[1724864532338,0.41573666,2519.7,2519.5,3.969]